[Event "XIX Najdorf Memorial 2019"]
[Site "Warsaw"]
[Date "2019.07.12"]
[Round "7.15"]
[White "Kowalski, Igor"]
[Black "Menezes, Christoph"]
[Result "1/2-1/2"]
[ECO "D90"]
[WhiteElo "2320"]
[BlackElo "2413"]
[Annotator "NA"]
[PlyCount "79"]
[EventDate "2019.07.06"]
[EventType "swiss"]
[EventCountry "POL"]
[SourceTitle "playchess.com"]
[Source "ChessBase"]
[SourceQuality "1"]
[TimeControl "40/5400+30:1800+30"]

1. d4 {[%emt 0:00:00]} Nf6 {[%emt 0:00:00]} 2. c4 {[%emt 0:00:00]} g6 {[%emt 0:00:00]} 3. Nc3 {[%emt 0:00:00]} d5 {[%emt 0:00:00]} 4. Nf3 {[%emt 0:00:00]} Bg7 {[%emt 0:00:10]} 5. h4 {[%emt 0:00:04]} dxc4 {[%emt 0:04:30]} 6. e4 {[%emt 0:00:23]} c5 {[%emt 0:01:07]} 7. d5 {[%emt 0:00:58]} b5 {[%emt 0:03:19]} 8. e5 {[%emt 0:06:37]} Ng4 {[%emt 0:04:01]} 9. Nxb5 {[%emt 0:05:37]} Qa5+ {[%emt 0:01:41]} 10. Nc3 {[%emt 0:00:05]} Nxe5 {[%emt 0:00:38]} 11. Nxe5 {[%emt 0:08:28]} Bxe5 {[%emt 0:00:06]} 12. Bd2 {[%emt 0:00:04]} Nd7 {[%emt 0:08:36]} 13. Bxc4 {[%emt 0:15:10]} Rb8 {[%emt 0:10:01]} 14. Qc1 {[%emt 0:17:45]} Qb6 {[%emt 0:14:39]} 15. b3 {[%emt 0:11:26]} a6 {[%emt 0:06:31]} 16. h5 {[%emt 0:02:11]} f5 {[%emt 0:04:40]} 17. Na4 {[%emt 0:07:04]} Qf6 {[%emt 0:06:03]} 18. Bg5 {[%emt 0:00:42]} Qd6 {[%emt 0:01:28]} 19. Rb1 {[%emt 0:01:32]} h6 {[%emt 0:01:13]} 20. Bd2 {[%emt 0:01:19]} g5 {[%emt 0:00:53]} 21. Bc3 {[%emt 0:00:58]} O-O {[%emt 0:03:03]} 22. O-O {[%emt 0:03:30]} Bxc3 {[%emt 0:09:33]} 23. Qxc3 {[%emt 0:00:19]} Nf6 {[%emt 0:01:05]} 24. Be2 {[%emt 0:01:10]} Ne4 {[%emt 0:01:18]} 25. Qc2 {[%emt 0:01:35]} Bb7 {[%emt 0:03:31]} 26. Rfd1 {[%emt 0:01:18]} g4 {[%emt 0:06:30]} 27. Bxg4 {[%emt 0:00:59]} Bxd5 {[%emt 0:00:39]} 28. Be2 {[%emt 0:00:45]} e6 {[%emt 0:02:14]} 29. Bc4 {[%emt 0:00:23]} Rbc8 {[%emt 0:02:59]} 30. f3 {[%emt 0:05:12]} Nf6 {[%emt 0:00:59]} 31. Bxd5 {[%emt 0:00:47]} Nxd5 {[%emt 0:00:22]} 32. Nc3 {[%emt 0:00:37]} Qe5 {[%emt 0:01:08]} 33. Nxd5 {[%emt 0:00:13]} exd5 {[%emt 0:00:04]} 34. Qd2 {[%emt 0:00:08]} Kh7 {[%emt 0:01:07]} 35. Qxd5 {[%emt 0:00:07]} Qe3+ {[%emt 0:00:17]} 36. Kh1 {[%emt 0:00:22]} Qg5 {[%emt 0:00:07]} 37. Qb7+ {[%emt 0:04:29]} Kh8 {[%emt 0:00:10]} 38. Qxa6 {[%emt 0:01:26]} Rg8 {[%emt 0:02:22]} 39. Rb2 {[%emt 0:00:14]} Rce8 {[%emt 0:01:43]} 40. Qd6 {[%emt 0:00:00]} 1/2-1/2

[Event "XIX Najdorf Memorial 2019"]
[Site "Warsaw"]
[Date "2019.07.12"]
[Round "7.16"]
[White "Sliwicki, Damian"]
[Black "Akesson, Ralf"]
[Result "1/2-1/2"]
[ECO "B54"]
[WhiteElo "2232"]
[BlackElo "2365"]
[Annotator "NA"]
[PlyCount "56"]
[EventDate "2019.07.06"]
[EventType "swiss"]
[EventCountry "POL"]
[SourceTitle "playchess.com"]
[Source "ChessBase"]
[SourceQuality "1"]
[TimeControl "40/5400+30:1800+30"]

1. e4 {[%emt 0:00:00]} c5 {[%emt 0:00:00]} 2. Nf3 {[%emt 0:00:00]} d6 {[%emt 0:00:07]} 3. d4 {[%emt 0:01:00]} cxd4 {[%emt 0:00:12]} 4. Nxd4 {[%emt 0:00:55]} Nf6 {[%emt 0:00:15]} 5. f3 {[%emt 0:00:03]} Nc6 {[%emt 0:10:58]} 6. c4 {[%emt 0:01:14]} g6 {[%emt 0:03:30]} 7. Be3 {[%emt 0:01:16]} Bg7 {[%emt 0:02:40]} 8. Nc3 {[%emt 0:00:30]} O-O 9. Be2 Nxd4 {[%emt 0:01:00]} 10. Bxd4 {[%emt 0:02:04]} Be6 {[%emt 0:00:39]} 11. O-O {[%emt 0:00:24]} Qa5 {[%emt 0:01:43]} 12. Rc1 {[%emt 0:01:34]} Rfc8 {[%emt 0:04:00]} 13. b3 {[%emt 0:00:16]} a6 {[%emt 0:01:48]} 14. Kh1 {[%emt 0:14:42]} b5 {[%emt 0:08:48]} 15. cxb5 {[%emt 0:02:55]} axb5 {[%emt 0:00:16]} 16. Nxb5 {[%emt 0:09:17]} Rxc1 {[%emt 0:10:20]} 17. Qxc1 {[%emt 0:00:14]} Qxa2 {[%emt 0:00:57]} 18. Nc7 {[%emt 0:02:36]} Rc8 {[%emt 0:04:20]} 19. Ba6 {[%emt 0:00:41]} Rxc7 {[%emt 0:14:52]} 20. Qxc7 {[%emt 0:00:05]} Qxa6 {[%emt 0:00:07]} 21. Qd8+ {[%emt 0:16:18]} Bf8 {[%emt 0:00:16]} 22. Ra1 {[%emt 0:00:08]} Qd3 {[%emt 0:02:41]} 23. Bxf6 {[%emt 0:01:13]} exf6 {[%emt 0:00:08]} 24. h3 {[%emt 0:06:38]} Qc3 {[%emt 0:09:17]} 25. Ra8 {[%emt 0:00:08]} Qc1+ {[%emt 0:00:09]} 26. Kh2 {[%emt 0:00:03]} Qf4+ {[%emt 0:00:07]} 27. Kg1 {[%emt 0:01:24]} Qc1+ {[%emt 0:00:25]} 28. Kh2 {[%emt 0:00:50]} Qf4+ {[%emt 0:00:08]} 1/2-1/2

[Event "XIX Najdorf Memorial 2019"]
[Site "Warsaw"]
[Date "2019.07.12"]
[Round "7.17"]
[White "Kucza, Karol"]
[Black "Lisowski, Krzysztof"]
[Result "1-0"]
[ECO "B33"]
[WhiteElo "2315"]
[BlackElo "2187"]
[Annotator "NA"]
[PlyCount "79"]
[EventDate "2019.07.06"]
[EventType "swiss"]
[EventCountry "POL"]
[SourceTitle "playchess.com"]
[Source "ChessBase"]
[SourceQuality "1"]
[TimeControl "40/5400+30:1800+30"]

1. e4 {[%emt 0:00:00]} c5 {[%emt 0:00:00]} 2. Nf3 {[%emt 0:00:00]} Nc6 {[%emt 0:00:00]} 3. d4 {[%emt 0:00:00]} cxd4 {[%emt 0:00:00]} 4. Nxd4 {[%emt 0:00:00]} Nf6 {[%emt 0:00:00]} 5. Nc3 {[%emt 0:00:00]} e5 {[%emt 0:00:03]} 6. Ndb5 {[%emt 0:00:06]} d6 {[%emt 0:00:06]} 7. Bg5 {[%emt 0:00:09]} a6 {[%emt 0:00:07]} 8. Na3 {[%emt 0:00:05]} b5 {[%emt 0:00:08]} 9. Nd5 {[%emt 0:00:25]} Be7 {[%emt 0:00:17]} 10. Bxf6 {[%emt 0:00:08]} Bxf6 {[%emt 0:00:07]} 11. c3 {[%emt 0:00:09]} Bg5 {[%emt 0:00:54]} 12. Nc2 {[%emt 0:00:20]} Ne7 {[%emt 0:00:45]} 13. a4 {[%emt 0:12:39]} bxa4 {[%emt 0:00:18]} 14. Nxe7 {[%emt 0:00:36]} Qxe7 {[%emt 0:00:25]} 15. Rxa4 {[%emt 0:00:10]} O-O {[%emt 0:12:08]} 16. Bc4 {[%emt 0:04:29]} a5 {[%emt 0:32:38]} 17. O-O {[%emt 0:04:33]} Bd7 {[%emt 0:14:32]} 18. Ra2 {[%emt 0:01:47]} Kh8 {[%emt 0:00:45]} 19. Qd3 {[%emt 0:07:38]} f5 {[%emt 0:00:26]} 20. Bd5 {[%emt 0:16:35]} Rab8 {[%emt 0:02:27]} 21. b4 {[%emt 0:04:22]} axb4 {[%emt 0:02:29]} 22. Nxb4 {[%emt 0:00:09]} f4 {[%emt 0:03:18]} 23. Rfa1 {[%emt 0:07:31]} Qe8 {[%emt 0:09:11]} 24. Ra8 {[%emt 0:10:36]} Qh5 {[%emt 0:11:47]} 25. Rxb8 {[%emt 0:00:53]} Rxb8 {[%emt 0:00:07]} 26. Bc6 {[%emt 0:01:56]} Be6 {[%emt 0:03:31]} 27. f3 {[%emt 0:12:04]} Be7 {[%emt 0:01:51]} 28. Qa6 {[%emt 0:05:27]} Qh4 {[%emt 0:01:43]} 29. Qa7 {[%emt 0:02:25]} Rf8 {[%emt 0:00:48]} 30. Bd5 {[%emt 0:00:25]} Bc8 {[%emt 0:00:37]} 31. Nc6 {[%emt 0:04:44]} Bd8 {[%emt 0:00:32]} 32. Rb1 {[%emt 0:00:50]} Qg5 {[%emt 0:01:48]} 33. Nxd8 {[%emt 0:00:24]} Qxd8 {[%emt 0:01:13]} 34. c4 {[%emt 0:02:12]} Qf6 {[%emt 0:01:20]} 35. Qc7 {[%emt 0:00:49]} h6 36. Rb8 {[%emt 0:01:05]} Qh4 {[%emt 0:01:04]} 37. Kf1 {[%emt 0:00:37]} Qxh2 {[%emt 0:00:13]} 38. Rxc8 {[%emt 0:00:24]} Qh1+ {[%emt 0:00:16]} 39. Kf2 {[%emt 0:00:05]} Qh4+ {[%emt 0:00:36]} 40. Ke2 {[%emt 0:00:00]} 1-0

[Event "XIX Najdorf Memorial 2019"]
[Site "Warsaw"]
[Date "2019.07.12"]
[Round "7.18"]
[White "Zebracki, Tomasz"]
[Black "Hassan, Abdullah"]
[Result "1-0"]
[ECO "C01"]
[WhiteElo "2183"]
[BlackElo "2311"]
[Annotator "NA"]
[PlyCount "55"]
[EventDate "2019.07.06"]
[EventType "swiss"]
[EventCountry "POL"]
[SourceTitle "playchess.com"]
[Source "ChessBase"]
[SourceQuality "1"]
[TimeControl "40/5400+30:1800+30"]

1. e4 e6 2. d4 d5 3. exd5 exd5 4. Bd3 Nc6 5. Ne2 Bd6 6. Nbc3 Nb4 7. Bb5+ c6 8. Ba4 Ne7 9. Bf4 O-O 10. O-O Bf5 11. Qd2 Ng6 12. Bxd6 Qxd6 13. Ng3 Bd7 14. Nce2 Rae8 15. f4 f5 16. Nc1 c5 17. Bxd7 Qxd7 18. dxc5 Qb5 19. Nb3 Qc4 20. Rad1 Rd8 21. Nd4 Qxc5 22. Kh1 Rfe8 23. Ngxf5 Re4 24. Ng3 Ree8 25. f5 Nf8 26. f6 Rd7 27. fxg7 Rxg7 28. Nh5 1-0

[Event "XIX Najdorf Memorial 2019"]
[Site "Warsaw"]
[Date "2019.07.12"]
[Round "7.19"]
[White "Punin, Andrii"]
[Black "Malynovskyi, Rostyslav"]
[Result "1/2-1/2"]
[ECO "A33"]
[WhiteElo "2305"]
[BlackElo "2156"]
[Annotator "NA"]
[PlyCount "168"]
[EventDate "2019.07.06"]
[EventType "swiss"]
[EventCountry "POL"]
[SourceTitle "playchess.com"]
[Source "ChessBase"]
[SourceQuality "1"]
[TimeControl "40/5400+30:1800+30"]

1. Nf3 c5 2. c4 Nc6 3. d4 cxd4 4. Nxd4 Nf6 5. Nc3 e6 6. a3 Qc7 7. Bg5 Be7 8. e3 a6 9. Be2 O-O 10. Rc1 Ne5 11. Bf4 d6 12. O-O b6 13. b4 Bb7 14. Na4 Nfd7 15. Bg3 Rfc8 16. f4 Nc6 17. Nc3 Qd8 18. Nf3 Nf6 19. Rc2 Rab8 20. Qd3 Qe8 21. Ng5 h6 22. Nh3 Rd8 23. Bf3 d5 24. cxd5 exd5 25. Ne2 Ne4 26. f5 Nxg3 27. hxg3 Ne5 28. Qb3 Bf6 29. Nd4 Nc4 30. Kf2 Nd6 31. Nf4 Ne4+ 32. Bxe4 dxe4 33. Rd2 Bc6 34. Re1 Rbc8 35. Qa2 Bb7 36. Nde2 Qb5 37. g4 Rxd2 38. Qxd2 Qa4 39. Rc1 Rd8 40. Qa2 Qd7 41. Rc4 Be5 42. Qc2 Qe7 43. Rxe4 Bxe4 44. Qxe4 Qd6 45. g3 b5 46. Nh3 Bb2 47. g5 Bxa3 48. gxh6 Qxh6 49. Nef4 Qd6 50. Ng5 Qxb4 51. Qh1 Qb2+ 52. Kf3 Qf6 53. Kg4 Qh6 54. Qb7 Rf8 55. Qe4 Bd6 56. Ng6 fxg6 57. Qe6+ Kh8 58. fxg6 Ba3 59. e4 Qh2 60. Nf7+ Rxf7 61. gxf7 Qe2+ 62. Kh4 Qf3 63. e5 g5+ 64. Kxg5 Qxg3+ 65. Kh5 Qf3+ 66. Kg6 Qe4+ 67. Kf6 Qh4+ 68. Kg6 Qh7+ 69. Kg5 Qg7+ 70. Kf4 Bc1+ 71. Kf3 Ba3 72. Qf5 Bf8 73. e6 Qc3+ 74. Ke2 Qc4+ 75. Kd1 Qd4+ 76. Ke2 Qc4+ 77. Kd1 Qb3+ 78. Ke2 Qa2+ 79. Kd1 Qa4+ 80. Ke2 Qa2+ 81. Kd1 Qa1+ 82. Ke2 Qb2+ 83. Kd1 Qd4+ 84. Ke2 Qc4+ 1/2-1/2

[Event "XIX Najdorf Memorial 2019"]
[Site "Warsaw"]
[Date "2019.07.12"]
[Round "7.20"]
[White "Markiewicz, Jerzy"]
[Black "Miroshnichenko, Pavel"]
[Result "1/2-1/2"]
[ECO "C91"]
[WhiteElo "2170"]
[BlackElo "2300"]
[Annotator "NA"]
[PlyCount "114"]
[EventDate "2019.07.06"]
[EventType "swiss"]
[EventCountry "POL"]
[SourceTitle "playchess.com"]
[Source "ChessBase"]
[SourceQuality "1"]
[TimeControl "40/5400+30:1800+30"]

1. e4 e5 2. Nf3 Nc6 3. Bb5 a6 4. Ba4 Nf6 5. O-O Be7 6. Re1 b5 7. Bb3 d6 8. c3 O-O 9. d4 Bg4 10. d5 Na5 11. Bc2 c6 12. h3 Bc8 13. dxc6 Qc7 14. Nbd2 Qxc6 15. Nf1 Re8 16. Bg5 h6 17. Bxf6 Bxf6 18. Ne3 Be6 19. Nd5 Bd8 20. Nd2 Rc8 21. a4 Qb7 22. axb5 axb5 23. b4 Nc4 24. Nxc4 Rxc4 25. Ra3 Qc8 26. Bb3 Rc6 27. Qd3 Rf8 28. Qxb5 Bxd5 29. Bxd5 Rxc3 30. Rxc3 Qxc3 31. Re3 Qd4 32. g3 Qa7 33. Rf3 Kh7 34. Qc6 f6 35. b5 Bc7 36. Qd7 Bb6 37. Qxd6 Rc8 38. Qe6 Rd8 39. Qf5+ Kh8 40. Qg6 Qd7 41. Kg2 Rf8 42. Bc6 Qf7 43. Qg4 h5 44. Qd7 Qxd7 45. Bxd7 Rd8 46. Rd3 Bd4 47. Bc6 Kg8 48. h4 Kf8 49. Ra3 Bc5 50. Rc3 Bd4 51. Rc2 Rc8 52. f4 Ke7 53. f5 Rc7 54. Ra2 Ra7 55. Ra6 Kd8 56. Bd5 Rxa6 57. bxa6 Kc7 1/2-1/2

[Event "XIX Najdorf Memorial 2019"]
[Site "Warsaw"]
[Date "2019.07.12"]
[Round "7.21"]
[White "Rakshitta Ravi"]
[Black "Szustakowski, Antoni"]
[Result "1-0"]
[ECO "C01"]
[WhiteElo "2112"]
[BlackElo "2279"]
[Annotator "NA"]
[PlyCount "83"]
[EventDate "2019.07.06"]
[EventType "swiss"]
[EventCountry "POL"]
[SourceTitle "playchess.com"]
[Source "ChessBase"]
[SourceQuality "1"]
[TimeControl "40/5400+30:1800+30"]

1. e4 e6 2. d4 d5 3. Nc3 Nf6 4. exd5 exd5 5. Bg5 Be7 6. Qd2 c6 7. O-O-O Be6 8. Bd3 h6 9. Bh4 Qb6 10. Re1 O-O 11. Nf3 Nbd7 12. g4 Rfe8 13. g5 Ne4 14. Nxe4 dxe4 15. Bxe4 h5 16. g6 f6 17. Qf4 Nf8 18. Bd3 Rad8 19. Rxe6 Nxe6 20. Qf5 Nf8 21. Bc4+ Rd5 22. Bxd5+ cxd5 23. Qxd5+ Qe6 24. Qxe6+ Nxe6 25. Bg3 Nf8 26. Nh4 Bd8 27. Kd2 f5 28. Nxf5 Nxg6 29. Bd6 Kf7 30. f4 Kf6 31. Ne3 Ke6 32. Be5 Nxe5 33. fxe5 Rf8 34. Rf1 Rxf1 35. Nxf1 Kf5 36. Ke3 g5 37. Ng3+ Kg4 38. Ke4 h4 39. Nf1 Kh3 40. d5 g4 41. d6 Kg2 42. e6 1-0

[Event "XIX Najdorf Memorial 2019"]
[Site "Warsaw"]
[Date "2019.07.12"]
[Round "7.22"]
[White "Sanz Wawer, Daniel"]
[Black "Pacan-Milej, Kosma"]
[Result "1/2-1/2"]
[ECO "A16"]
[WhiteElo "2154"]
[BlackElo "2272"]
[Annotator "NA"]
[PlyCount "82"]
[EventDate "2019.07.06"]
[EventType "swiss"]
[EventCountry "POL"]
[SourceTitle "playchess.com"]
[Source "ChessBase"]
[SourceQuality "1"]
[TimeControl "40/5400+30:1800+30"]

1. c4 Nf6 2. Nc3 d6 3. g3 e5 4. Bg2 Be7 5. Nf3 O-O 6. O-O Nbd7 7. Qc2 c6 8. d4 Qc7 9. e4 a6 10. d5 cxd5 11. cxd5 b5 12. a3 Nc5 13. Nd2 Bd7 14. Nb3 Na4 15. Bd2 Rfc8 16. Qb1 Bd8 17. Rc1 Qa7 18. Be3 Bb6 19. Bxb6 Qxb6 20. Nd1 b4 21. Qd3 Rab8 22. Rxc8+ Rxc8 23. Rc1 Rxc1 24. Nxc1 Nc5 25. Qe3 bxa3 26. bxa3 Qb1 27. f3 Qc2 28. Nc3 Ne8 29. N1e2 Nc7 30. Bf1 Qb3 31. Qc1 Qb6 32. Qe3 h6 33. Kg2 Qb3 34. Qc1 f5 35. h3 Kh8 36. g4 fxe4 37. fxe4 Nb5 38. Nxb5 Bxb5 39. Ng3 Bd3 40. Bxd3 Qxd3 41. Qf1 Qxa3 1/2-1/2

[Event "XIX Najdorf Memorial 2019"]
[Site "Warsaw"]
[Date "2019.07.12"]
[Round "7.23"]
[White "Harazinska, Magdalena"]
[Black "Siekanski, Janusz"]
[Result "1/2-1/2"]
[ECO "D32"]
[WhiteElo "2004"]
[BlackElo "2270"]
[Annotator "NA"]
[PlyCount "87"]
[EventDate "2019.07.06"]
[EventType "swiss"]
[EventCountry "POL"]
[SourceTitle "playchess.com"]
[Source "ChessBase"]
[SourceQuality "1"]
[TimeControl "40/5400+30:1800+30"]

1. d4 {[%emt 0:00:00]} d5 {[%emt 0:00:00]} 2. c4 {[%emt 0:00:00]} e6 {[%emt 0:00:00]} 3. Nc3 {[%emt 0:00:00]} c5 {[%emt 0:00:00]} 4. cxd5 {[%emt 0:00:33]} exd5 {[%emt 0:00:00]} 5. Nf3 {[%emt 0:00:12]} Nc6 {[%emt 0:00:07]} 6. dxc5 {[%emt 0:00:10]} d4 {[%emt 0:00:58]} 7. Na4 {[%emt 0:01:21]} Bxc5 {[%emt 0:00:40]} 8. Nxc5 {[%emt 0:00:09]} Qa5+ {[%emt 0:00:06]} 9. Bd2 {[%emt 0:00:05]} Qxc5 {[%emt 0:00:07]} 10. Rc1 {[%emt 0:00:18]} Qb6 {[%emt 0:00:44]} 11. e3 {[%emt 0:01:11]} Nf6 {[%emt 0:07:37]} 12. Bc4 {[%emt 0:01:46]} O-O {[%emt 0:02:32]} 13. O-O {[%emt 0:14:31]} Bg4 {[%emt 0:00:22]} 14. exd4 {[%emt 0:04:05]} Rad8 {[%emt 0:00:19]} 15. Bc3 {[%emt 0:07:35]} Ne5 {[%emt 0:01:18]} 16. Be2 {[%emt 0:02:51]} Bxf3 {[%emt 0:00:22]} 17. Bxf3 {[%emt 0:00:05]} Nxf3+ {[%emt 0:00:12]} 18. Qxf3 {[%emt 0:00:05]} Nd5 {[%emt 0:00:10]} 19. Rfe1 {[%emt 0:02:02]} Qa6 {[%emt 0:02:30]} 20. a3 {[%emt 0:01:52]} Qb5 {[%emt 0:01:42]} 21. h3 {[%emt 0:06:26]} Rfe8 {[%emt 0:01:46]} 22. Re5 {[%emt 0:05:17]} f6 {[%emt 0:01:34]} 23. Rxe8+ {[%emt 0:05:23]} Rxe8 {[%emt 0:01:41]} 24. Bd2 {[%emt 0:01:25]} Rd8 {[%emt 0:14:20]} 25. b4 {[%emt 0:07:13]} h6 {[%emt 0:22:27]} 26. Qf5 {[%emt 0:07:41]} Qd7 {[%emt 0:03:51]} 27. Qxd7 {[%emt 0:06:29]} Rxd7 {[%emt 0:00:02]} 28. Kf1 {[%emt 0:01:01]} Kf7 {[%emt 0:15:35]} 29. Ke2 {[%emt 0:03:52]} Rc7 {[%emt 0:00:43]} 30. Rc5 {[%emt 0:04:28]} Ke6 {[%emt 0:00:26]} 31. Kd3 {[%emt 0:01:49]} b6 {[%emt 0:03:02]} 32. Rxc7 {[%emt 0:01:12]} Nxc7 {[%emt 0:00:01]} 33. Kc4 {[%emt 0:01:24]} a6 {[%emt 0:01:04]} 34. a4 {[%emt 0:05:01]} Nd5 {[%emt 0:00:28]} 35. Bc1 {[%emt 0:03:56]} Kd6 {[%emt 0:06:38]} 36. Ba3 {[%emt 0:01:13]} b5+ {[%emt 0:00:18]} 37. axb5 {[%emt 0:00:42]} Nb6+ {[%emt 0:00:21]} 38. Kd3 {[%emt 0:01:36]} axb5 {[%emt 0:00:02]} 39. Ke4 {[%emt 0:01:06]} Nd5 {[%emt 0:03:26]} 40. Bc1 {[%emt 0:00:00]} Ke6 {[%emt 0:00:00]} 41. Bd2 {[%emt 0:02:22]} f5+ {[%emt 0:00:29]} 42. Kd3 {[%emt 0:01:54]} h5 {[%emt 0:03:38]} 43. f3 {[%emt 0:08:19]} g6 {[%emt 0:01:40]} 44. g3 {[%emt 0:06:35] Ke5 Ke4+} 1/2-1/2

[Event "XIX Najdorf Memorial 2019"]
[Site "Warsaw"]
[Date "2019.07.12"]
[Round "7.24"]
[White "Bus, Konrad"]
[Black "Murawko, Katarzyna"]
[Result "1-0"]
[ECO "A00"]
[WhiteElo "2264"]
[BlackElo "2057"]
[Annotator "NA"]
[PlyCount "69"]
[EventDate "2019.07.06"]
[EventType "swiss"]
[EventCountry "POL"]
[SourceTitle "playchess.com"]
[Source "ChessBase"]
[SourceQuality "1"]
[TimeControl "40/5400+30:1800+30"]

1. g3 {[%emt 0:00:00]} g6 {[%emt 0:00:00]} 2. Bg2 {[%emt 0:00:00]} Bg7 {[%emt 0:00:00]} 3. d4 {[%emt 0:01:29]} d6 {[%emt 0:00:00]} 4. Nf3 {[%emt 0:01:42]} Nf6 {[%emt 0:00:11]} 5. O-O {[%emt 0:00:21]} O-O {[%emt 0:00:52]} 6. b3 {[%emt 0:00:30]} c6 {[%emt 0:01:11]} 7. Bb2 {[%emt 0:04:43]} Nbd7 {[%emt 0:03:42]} 8. Nbd2 {[%emt 0:02:15]} Qc7 {[%emt 0:03:28]} 9. e4 {[%emt 0:02:37]} e5 {[%emt 0:02:32]} 10. dxe5 {[%emt 0:02:48]} dxe5 {[%emt 0:00:30]} 11. Qe2 {[%emt 0:00:54]} b5 {[%emt 0:07:53]} 12. a4 {[%emt 0:08:02]} Rb8 {[%emt 0:01:39]} 13. Rfc1 {[%emt 0:04:33]} Rd8 {[%emt 0:10:22]} 14. axb5 {[%emt 0:05:50]} cxb5 {[%emt 0:00:57]} 15. c4 {[%emt 0:03:29]} b4 {[%emt 0:01:31]} 16. c5 {[%emt 0:04:46]} Ne8 {[%emt 0:00:57]} 17. c6 {[%emt 0:04:29]} Nf8 {[%emt 0:03:59]} 18. Qe3 {[%emt 0:04:33]} a6 {[%emt 0:02:03]} 19. Bf1 {[%emt 0:06:52]} Rb6 {[%emt 0:27:07]} 20. Bxe5 {[%emt 0:03:20]} Bxe5 {[%emt 0:01:59]} 21. Nxe5 {[%emt 0:00:06]} Nd6 {[%emt 0:05:22]} 22. Ndc4 {[%emt 0:07:24]} Nxc4 {[%emt 0:00:16]} 23. Bxc4 {[%emt 0:00:57]} Be6 {[%emt 0:00:58]} 24. f4 {[%emt 0:04:18]} Kg7 {[%emt 0:04:11]} 25. Rxa6 {[%emt 0:01:34]} Rxa6 {[%emt 0:00:10]} 26. Bxa6 {[%emt 0:00:01]} f6 {[%emt 0:01:09]} 27. Nf3 {[%emt 0:01:50]} Ra8 {[%emt 0:01:29]} 28. Be2 {[%emt 0:01:12]} Bf7 {[%emt 0:02:17]} 29. e5 {[%emt 0:01:08]} fxe5 {[%emt 0:00:58]} 30. Qxe5+ {[%emt 0:03:22]} Qxe5 {[%emt 0:00:06]} 31. Nxe5 {[%emt 0:00:05]} Bxb3 {[%emt 0:00:39]} 32. c7 {[%emt 0:01:07]} Be6 {[%emt 0:00:45]} 33. Bf3 {[%emt 0:00:28]} Re8 {[%emt 0:01:38]} 34. Bc6 {[%emt 0:00:49]} Rc8 {[%emt 0:00:28]} 35. Bb7 {[%emt 0:00:06]} 1-0

[Event "XIX Najdorf Memorial 2019"]
[Site "Warsaw"]
[Date "2019.07.12"]
[Round "7.25"]
[White "Antolak, Julia"]
[Black "Dzida, Kamil"]
[Result "1/2-1/2"]
[ECO "B90"]
[WhiteElo "2258"]
[BlackElo "1987"]
[Annotator "NA"]
[PlyCount "60"]
[EventDate "2019.07.06"]
[EventType "swiss"]
[EventCountry "POL"]
[SourceTitle "playchess.com"]
[Source "ChessBase"]
[SourceQuality "1"]
[TimeControl "40/5400+30:1800+30"]

1. e4 {[%emt 0:00:00]} c5 {[%emt 0:00:00]} 2. Nf3 {[%emt 0:00:00]} d6 {[%emt 0:00:00]} 3. d4 {[%emt 0:00:00]} cxd4 {[%emt 0:00:00]} 4. Nxd4 {[%emt 0:00:00]} Nf6 {[%emt 0:00:00]} 5. Nc3 {[%emt 0:00:00]} a6 {[%emt 0:00:08]} 6. Be3 {[%emt 0:00:05]} e5 {[%emt 0:00:07]} 7. Nb3 {[%emt 0:00:04]} Be6 {[%emt 0:00:07]} 8. f3 {[%emt 0:00:06]} Be7 {[%emt 0:00:06]} 9. Qd2 {[%emt 0:00:16]} Nbd7 {[%emt 0:00:06]} 10. O-O-O {[%emt 0:00:11]} h5 {[%emt 0:00:04]} 11. Kb1 {[%emt 0:01:53]} b5 {[%emt 0:00:20]} 12. Nd5 {[%emt 0:01:58]} Bxd5 {[%emt 0:00:06]} 13. exd5 {[%emt 0:00:06]} Nb6 {[%emt 0:00:06]} 14. f4 {[%emt 0:09:06]} Nbxd5 {[%emt 0:04:25]} 15. c4 {[%emt 0:01:09]} Nxe3 {[%emt 0:05:06]} 16. Qxe3 {[%emt 0:00:12]} O-O {[%emt 0:01:26]} 17. cxb5 {[%emt 0:10:34]} axb5 {[%emt 0:00:04]} 18. Bxb5 {[%emt 0:00:34]} Ng4 {[%emt 0:00:54]} 19. Qf3 {[%emt 0:11:48]} e4 {[%emt 0:09:33]} 20. Qe2 {[%emt 0:05:51]} Qb6 {[%emt 0:00:38]} 21. Rd5 {[%emt 0:00:59]} Nf6 {[%emt 0:05:13]} 22. Rg5 {[%emt 0:01:58]} d5 {[%emt 0:04:35]} 23. Rd1 {[%emt 0:03:37]} Rfd8 {[%emt 0:09:43]} 24. Nd4 {[%emt 0:15:53]} Bc5 {[%emt 0:03:28]} 25. Nf5 {[%emt 0:00:14]} g6 {[%emt 0:00:32]} 26. Ng3 {[%emt 0:00:25]} h4 {[%emt 0:07:06]} 27. Nf5 {[%emt 0:02:48]} Nh7 {[%emt 0:24:03]} 28. Rg4 {[%emt 0:04:26]} Nf6 {[%emt 0:00:07]} 29. Rg5 {[%emt 0:02:30]} Nh7 {[%emt 0:05:56]} 30. Rg4 {[%emt 0:07:15]} Nf6 {[%emt 0:04:10]} 1/2-1/2

[Event "XIX Najdorf Memorial 2019"]
[Site "Warsaw"]
[Date "2019.07.12"]
[Round "7.26"]
[White "Zochowski, Kacper"]
[Black "Krasiewicz, Robert"]
[Result "1-0"]
[ECO "A05"]
[WhiteElo "2251"]
[BlackElo "2017"]
[Annotator "NA"]
[PlyCount "63"]
[EventDate "2019.07.06"]
[EventType "swiss"]
[EventCountry "POL"]
[SourceTitle "playchess.com"]
[Source "ChessBase"]
[SourceQuality "1"]
[TimeControl "40/5400+30:1800+30"]

1. Nf3 {[%emt 0:03:04]} Nf6 {[%emt 0:06:39]} 2. c4 {[%emt 0:00:34]} e6 {[%emt 0:00:11]} 3. g3 {[%emt 0:00:08]} d5 {[%emt 0:00:02]} 4. Bg2 {[%emt 0:00:07]} c5 {[%emt 0:00:09]} 5. cxd5 {[%emt 0:03:50]} exd5 {[%emt 0:00:42]} 6. O-O {[%emt 0:00:20]} Nc6 {[%emt 0:00:25]} 7. d4 {[%emt 0:00:39]} Be7 {[%emt 0:00:40]} 8. dxc5 {[%emt 0:03:10]} Bxc5 {[%emt 0:00:03]} 9. a3 {[%emt 0:06:49]} a6 {[%emt 0:01:41]} 10. b4 {[%emt 0:01:16]} Be7 {[%emt 0:00:22]} 11. Bb2 {[%emt 0:00:34]} O-O {[%emt 0:00:18]} 12. Nc3 {[%emt 0:00:36]} Bg4 {[%emt 0:06:00]} 13. Re1 {[%emt 0:03:19]} Qd7 {[%emt 0:03:59]} 14. Na4 {[%emt 0:11:30]} Rad8 {[%emt 0:00:02]} 15. Rc1 {[%emt 0:03:55]} Ne4 {[%emt 0:11:33]} 16. Nd4 {[%emt 0:07:13]} Bg5 {[%emt 0:08:26]} 17. f4 {[%emt 0:22:13]} Nxd4 {[%emt 0:08:59]} 18. Bxd4 {[%emt 0:00:52]} Bf6 {[%emt 0:02:10]} 19. Bxf6 {[%emt 0:03:14]} Nxf6 {[%emt 0:00:44]} 20. Nc5 {[%emt 0:00:11]} Qe7 {[%emt 0:04:08]} 21. Qd4 {[%emt 0:00:26]} Rfe8 {[%emt 0:00:40]} 22. Nd3 {[%emt 0:06:40]} Qe3+ {[%emt 0:29:33]} 23. Qxe3 {[%emt 0:00:07]} Rxe3 {[%emt 0:00:02]} 24. Ne5 {[%emt 0:03:03]} Be6 {[%emt 0:04:11]} 25. a4 {[%emt 0:00:31]} Rb3 {[%emt 0:01:01]} 26. Rb1 {[%emt 0:02:36]} Rxb1 {[%emt 0:00:21]} 27. Rxb1 {[%emt 0:00:01]} Rc8 {[%emt 0:00:01]} 28. a5 {[%emt 0:00:56]} Bf5 {[%emt 0:00:41]} 29. Rd1 {[%emt 0:00:09]} Be4 {[%emt 0:01:53]} 30. Bxe4 {[%emt 0:01:01]} dxe4 {[%emt 0:00:02]} 31. Nd7 {[%emt 0:00:34]} Rc4 {[%emt 0:01:36]} 32. Nb6 {[%emt 0:00:14]} 1-0